bitfinex-derivatives/quotes_BTCF0:USTF0_20241218
["timestamp","ask_amount","ask_price","bid_price","bid_amount"]
[1734493399718,0.77852004,104750.0,104730.0,0.00143195]
[1734493399911,0.047744,104730.0,104720.0,0.0324]
[1734493400101,0.42484456,104730.0,104720.0,0.0324]
[1734493400413,0.47258856,104730.0,104720.0,0.0324]
[1734493400608,0.047748,104720.0,104710.0,0.004]
[1734493401012,0.047748,104720.0,104710.0,0.3648]
[1734493401409,0.05211691,104720.0,104710.0,0.01294555]
[1734493401610,0.47853304,104720.0,104710.0,0.004]
[1734493406223,0.47853304,104720.0,104700.0,0.11]
[1734493406224,0.047753,104710.0,104700.0,0.085]
[1734493406418,0.54093804,104710.0,104700.0,0.085]
[1734493406719,0.18013804,104710.0,104700.0,0.085]
[1734493407316,0.54093804,104710.0,104700.0,0.085]
[1734493408718,0.54105581,104710.0,104700.0,0.085]
[1734493411811,0.047767,104680.0,104670.0,0.00496212]
[1734493412011,0.047767,104680.0,104670.0,0.11653312]
[1734493412313,0.77855204,104680.0,104670.0,0.00496212]
[1734493412514,0.89505204,104680.0,104670.0,0.00496212]
[1734493413512,0.86345204,104680.0,104670.0,0.00496212]
[1734493414220,0.047776,104660.0,104650.0,0.03213332]
[1734493414425,0.047776,104660.0,104650.0,0.07991332]
[1734493415922,0.11776104,104660.0,104650.0,0.07991332]
[1734493416514,0.047776,104660.0,104650.0,0.07991332]
[1734493416719,0.11776104,104660.0,104650.0,0.07991332]
[1734493417822,0.11776104,104660.0,104650.0,0.04921332]
[1734493418217,0.11776104,104660.0,104650.0,0.07941332]
[1734493419921,0.11775704,104670.0,104660.0,0.047776]
[1734493420130,0.11775704,104670.0,104660.0,0.079576]
[1734493420822,0.047772,104670.0,104660.0,0.440376]
[1734493421019,0.47855304,104680.0,104670.0,0.047771]
[1734493421620,0.15587331,104680.0,104670.0,0.047771]
[1734493421816,0.51667331,104680.0,104670.0,0.047771]
[1734493422141,0.51667331,104680.0,104660.0,0.047774]
[1734493422320,0.59107008,104670.0,104610.0,0.01884354]
[1734493422622,0.59107008,104670.0,104610.0,0.047798]
[1734493422623,0.43078504,104620.0,104610.0,0.047798]
[1734493422817,0.3608,104620.0,104610.0,0.047798]
[1734493425718,0.47857704,104630.0,104600.0,0.4608]
[1734493426030,0.47857704,104630.0,104620.0,0.047794]
[1734493426229,0.3608,104630.0,104620.0,0.047794]
[1734493427623,0.47857404,104630.0,104620.0,0.047794]
[1734493427815,0.47857404,104630.0,104610.0,0.047797]
[1734493428021,0.43078504,104620.0,104610.0,0.047797]
[1734493428222,0.3608,104620.0,104610.0,0.047797]
[1734493429533,0.3608,104620.0,104610.0,0.048297]
[1734493429923,0.408594,104620.0,104610.0,0.048297]
[1734493430427,0.408594,104620.0,104610.0,0.0005]
[1734493431535,0.408594,104620.0,104610.0,0.048298]
[1734493431722,0.3608,104620.0,104610.0,0.048298]
[1734493434632,0.43078504,104620.0,104610.0,0.048298]
[1734493434832,0.3608,104620.0,104610.0,0.048298]
[1734493435032,0.37963079,104630.0,104620.0,0.047794]
[1734493435333,0.37963079,104630.0,104620.0,0.144294]
[1734493436327,0.37963079,104630.0,104620.0,0.21427904]
[1734493436528,0.37963079,104630.0,104620.0,0.144294]
[1734493436733,0.32963079,104630.0,104620.0,0.144294]
[1734493437330,0.3108,104630.0,104620.0,0.144294]
[1734493437536,0.36089347,104640.0,104630.0,0.047789]
[1734493444035,0.43087851,104640.0,104630.0,0.047789]
[1734493444237,0.36089347,104640.0,104630.0,0.047789]
[1734493446934,0.58151108,104650.0,104630.0,0.047789]
[1734493446935,0.43084604,104650.0,104630.0,0.047789]
[1734493447245,0.43084604,104650.0,104640.0,0.047785]
[1734493447446,0.43034604,104650.0,104640.0,0.047785]
[1734493447643,0.32728747,104650.0,104640.0,0.047785]
[1734493448038,0.32728747,104650.0,104640.0,0.04787847]
[1734493448343,0.32778747,104650.0,104640.0,0.04787847]
[1734493449441,0.32728747,104650.0,104640.0,0.04787847]
[1734493450255,0.3608,104650.0,104640.0,9.347e-05]
[1734493450439,0.3613,104650.0,104640.0,0.04787847]
[1734493450946,0.43128504,104650.0,104640.0,0.04787847]
[1734493451348,0.44979666,104650.0,104640.0,0.04787847]
[1734493451649,0.43979666,104650.0,104640.0,0.04787847]
[1734493452351,0.44029666,104650.0,104640.0,0.04787847]
[1734493452945,0.48807666,104650.0,104640.0,0.04787847]
[1734493453248,0.78807666,104650.0,104640.0,9.347e-05]
[1734493453449,0.78757666,104650.0,104640.0,9.347e-05]
[1734493453749,0.48757666,104650.0,104640.0,0.04787847]
[1734493454043,0.36981162,104650.0,104640.0,0.04787847]
[1734493454245,0.43979666,104650.0,104640.0,0.04787847]
[1734493454451,0.44029666,104650.0,104640.0,0.04787847]
[1734493455345,0.43979666,104650.0,104640.0,0.04787847]
[1734493455745,0.36981162,104650.0,104640.0,0.04787847]
[1734493456647,0.37031162,104650.0,104640.0,0.04787847]
[1734493457447,0.36981162,104650.0,104640.0,0.04787847]
[1734493458352,0.31608733,104650.0,104640.0,0.04787847]
[1734493458551,0.31658733,104650.0,104640.0,0.04787847]
[1734493459560,0.31608733,104650.0,104640.0,0.04787847]
[1734493466352,0.43385237,104650.0,104640.0,9.347e-05]
[1734493466554,0.27149243,104650.0,104640.0,0.00904846]
[1734493467165,0.27149243,104650.0,104640.0,9.347e-05]
[1734493467868,0.27149243,104650.0,104640.0,0.04787847]
[1734493468057,0.15372739,104650.0,104640.0,0.04787847]
[1734493468855,0.22371243,104650.0,104640.0,0.04787847]
[1734493469264,0.08899666,104650.0,104640.0,0.04787847]
[1734493469456,0.01901162,104650.0,104640.0,0.04787847]
[1734493471257,0.37981162,104650.0,104640.0,0.04787847]
[1734493471461,0.13677666,104650.0,104640.0,0.04787847]
[1734493471665,0.49757666,104650.0,104640.0,9.347e-05]
[1734493474160,0.52987666,104650.0,104640.0,9.347e-05]
[1734493476060,1.2527417,104650.0,104620.0,0.01]
[1734493476363,0.408589,104630.0,104620.0,0.057794]
[1734493476568,0.408589,104630.0,104620.0,0.058294]
[1734493476962,0.3608,104630.0,104620.0,0.058294]
[1734493477162,0.3608,104630.0,104620.0,0.089594]
[1734493477560,0.3608,104630.0,104620.0,0.089094]
[1734493477979,0.51037104,104640.0,104620.0,0.089094]
[1734493478365,0.43078504,104630.0,104620.0,0.057794]
[1734493478567,0.47857404,104630.0,104620.0,0.058294]
[1734493479477,0.47857404,104630.0,104620.0,0.057794]
[1734493480474,0.47857404,104630.0,104620.0,0.058294]
[1734493481566,0.47857404,104630.0,104620.0,0.057794]
[1734493481971,0.42484051,104630.0,104620.0,0.057794]
[1734493482366,0.3608,104630.0,104620.0,0.057794]
[1734493482562,0.3608,104630.0,104620.0,0.058294]
[1734493483276,0.49856652,104630.0,104620.0,0.058294]
[1734493483570,0.49856652,104630.0,104620.0,0.01]
[1734493483979,0.53106652,104630.0,104620.0,0.01]
[1734493484482,0.53106652,104630.0,104620.0,0.0105]
[1734493484869,0.53106652,104630.0,104620.0,0.058294]
[1734493485576,0.53106652,104630.0,104620.0,0.057794]
[1734493485971,0.45077752,104630.0,104620.0,0.057794]
[1734493486172,0.38079248,104630.0,104620.0,0.089094]
[1734493486374,0.4701631,104630.0,104620.0,0.089094]
[1734493486880,0.5179521,104630.0,104620.0,0.089094]
[1734493490077,0.5179521,104630.0,104620.0,0.71794065]
[1734493490770,0.5179521,104630.0,104620.0,0.01]
[1734493492280,0.047794,104620.0,104610.0,0.62884665]
[1734493492478,0.47857904,104620.0,104610.0,0.62934665]
[1734493492685,0.54856408,104620.0,104610.0,0.0005]
[1734493492890,0.54277904,104620.0,104610.0,0.0005]
[1734493493383,0.047798,104610.0,104600.0,0.0995]
[1734493493587,0.90148808,104610.0,104600.0,0.09706722]
[1734493493786,0.90148808,104610.0,104600.0,0.06274499]
[1734493494288,0.90148808,104610.0,104600.0,0.04326499]
[1734493494881,1.20148808,104610.0,104600.0,0.04326499]
[1734493495075,1.20148808,104610.0,104580.0,0.078911]
[1734493495275,0.47859304,104590.0,104580.0,0.078911]
[1734493495475,0.42483698,104590.0,104580.0,0.078911]
[1734493496889,0.45563698,104590.0,104580.0,0.078911]
[1734493497771,0.45563698,104590.0,104580.0,0.0311]
[1734493498174,0.45563698,104590.0,104560.0,0.00143452]
[1734493498175,0.88642202,104590.0,104560.0,0.00143452]
[1734493498376,0.408617,104570.0,104560.0,0.00143452]
[1734493498580,0.47860204,104570.0,104530.0,0.63131653]
[1734493498889,0.3608,104550.0,104540.0,0.04783]
[1734493499179,0.408617,104570.0,104550.0,0.047826]
[1734493499180,0.3608,104570.0,104550.0,0.047826]
[1734493499380,0.3608,104570.0,104560.0,0.047821]
[1734493499577,0.2608,104570.0,104560.0,0.11780604]
[1734493499773,0.2108,104570.0,104560.0,0.41780604]
[1734493500086,0.3608,104580.0,104570.0,0.047817]
[1734493500487,0.3608,104580.0,104570.0,0.11780204]
[1734493500789,0.43229497,104600.0,104590.0,0.047808]
[1734493501176,0.00150993,104600.0,104590.0,0.047808]
[1734493501476,0.00150993,104600.0,104590.0,0.048308]
[1734493501672,7.494e-05,104600.0,104590.0,0.048308]
[1734493501986,7.494e-05,104600.0,104590.0,0.709108]
[1734493502287,2.31e-06,104600.0,104590.0,0.88500558]
[1734493502587,2.31e-06,104600.0,104590.0,0.70868063]
[1734493503491,2.31e-06,104600.0,104590.0,0.70918063]
[1734493503887,2.31e-06,104600.0,104590.0,0.75408063]
[1734493504593,2.31e-06,104600.0,104590.0,0.92940558]
[1734493504887,2.31e-06,104600.0,104590.0,0.99939062]
[1734493505585,2.31e-06,104600.0,104590.0,0.95158262]
[1734493505785,2.31e-06,104600.0,104590.0,0.99939062]
[1734493506785,2.31e-06,104600.0,104590.0,0.33859062]
[1734493506981,2.31e-06,104600.0,104590.0,0.25690558]
[1734493507180,2.31e-06,104600.0,104590.0,0.08108063]
[1734493508191,2.31e-06,104600.0,104590.0,0.08098063]
[1734493508678,2.31e-06,104600.0,104590.0,0.0332297]
[1734493510290,0.0309,104600.0,104590.0,0.047808]
[1734493510689,0.3917,104600.0,104570.0,0.44258504]
[1734493510897,0.502905,104600.0,104580.0,0.047811]
[1734493511091,0.3608,104590.0,104580.0,0.047811]
[1734493511492,0.3608,104590.0,104580.0,0.048311]
[1734493511695,0.3608,104590.0,104580.0,0.0005]
[1734493512094,0.3608,104590.0,104580.0,0.048308]
[1734493513598,0.3608,104590.0,104580.0,0.047808]
[1734493514194,0.43078504,104590.0,104580.0,0.047808]
[1734493514585,0.73078504,104590.0,104560.0,0.00143433]
[1734493514789,0.73078504,104590.0,104560.0,0.047821]
[1734493514790,0.7216,104570.0,104560.0,0.047821]
[1734493515094,0.66783681,104570.0,104560.0,0.047821]
[1734493515287,0.70073681,104570.0,104560.0,0.047821]
[1734493515798,0.74855381,104570.0,104550.0,0.047822]
[1734493516003,0.3608,104560.0,104550.0,0.047822]
[1734493516902,0.38775381,104570.0,104550.0,0.047822]
[1734493517197,0.3608,104560.0,104540.0,0.06998504]
[1734493517400,0.38775381,104570.0,104550.0,0.047826]
[1734493517896,0.3915,104560.0,104540.0,0.06998504]
[1734493518504,0.0307,104560.0,104550.0,0.047823]
[1734493518801,0.0307,104560.0,104550.0,0.11780804]
[1734493518992,0.33993681,104570.0,104560.0,0.047821]
[1734493519699,0.33993681,104570.0,104560.0,0.048321]
[1734493520193,0.3608,104580.0,104570.0,0.047817]
[1734493520393,0.4521,104590.0,104580.0,0.047812]
[1734493520595,0.4217,104590.0,104580.0,0.047812]
[1734493520793,0.4217,104590.0,104560.0,0.57032104]
[1734493520999,0.4217,104590.0,104580.0,0.047812]
[1734493521307,0.56167008,104590.0,104560.0,0.0005]
[1734493521497,0.43078504,104570.0,104560.0,0.04832]
[1734493521995,0.3608,104570.0,104560.0,0.04832]
[1734493522599,0.441214,104580.0,104570.0,0.047817]
[1734493522903,0.3934,104580.0,104570.0,0.047817]
[1734493523802,0.3934,104580.0,104570.0,6.607e-05]
[1734493523999,0.0326,104580.0,104560.0,0.40862]
[1734493524589,0.3934,104580.0,104560.0,0.40862]
[1734493524800,0.3934,104580.0,104560.0,1.03579019]
[1734493525008,0.3934,104580.0,104570.0,0.047817]
[1734493526903,0.3934,104580.0,104550.0,0.03373449]
[1734493527105,0.3934,104580.0,104570.0,0.047817]
[1734493527901,0.46338504,104580.0,104570.0,0.047817]
[1734493528102,0.48112666,104580.0,104570.0,0.047817]
[1734493528305,0.46338504,104580.0,104570.0,0.047817]
[1734493529807,0.51119704,104580.0,104570.0,0.047817]
[1734493530108,0.51119704,104580.0,104560.0,0.047817]
[1734493530413,0.51119704,104580.0,104570.0,0.047817]
[1734493531406,0.3934,104580.0,104570.0,0.047817]
[1734493532613,0.0326,104580.0,104570.0,0.047817]
[1734493532810,0.3934,104580.0,104570.0,0.047817]
[1734493533220,0.51119704,104580.0,104570.0,0.047817]
[1734493533408,0.46338504,104580.0,104570.0,0.047817]
[1734493533817,0.51119704,104580.0,104570.0,0.01]
[1734493535717,0.441212,104580.0,104570.0,0.057817]
[1734493535914,0.441212,104580.0,104570.0,0.01006607]
[1734493536120,0.441212,104580.0,104570.0,0.01]
[1734493536323,0.441212,104580.0,104570.0,0.057817]
[1734493536820,0.51119704,104580.0,104570.0,0.057817]
[1734493537024,0.46338504,104580.0,104570.0,0.057817]
[1734493538211,0.3934,104580.0,104570.0,0.057817]
[1734493538812,0.3934,104580.0,104570.0,0.047817]
[1734493539017,0.3934,104580.0,104550.0,0.64867847]
[1734493539319,0.3608,104570.0,104550.0,0.64867847]
[1734493539516,0.3608,104570.0,104550.0,0.64817847]
[1734493540021,0.3608,104570.0,104560.0,0.047819]
[1734493541921,0.3608,104570.0,104560.0,0.67521119]
[1734493542120,0.3608,104570.0,104560.0,0.62739219]
[1734493542624,0.3608,104570.0,104560.0,0.67521119]
[1734493543532,0.3608,104570.0,104560.0,0.62739219]
[1734493543533,0.47860204,104570.0,104560.0,0.62739219]
[1734493543825,0.408617,104570.0,104560.0,0.62739219]
[1734493544027,0.408617,104570.0,104560.0,0.047821]
[1734493544229,0.4243757,104570.0,104560.0,0.67521319]
[1734493544421,0.4571757,104570.0,104560.0,0.67521319]
[1734493544818,0.4571757,104570.0,104560.0,0.047821]
[1734493545023,0.4571757,104570.0,104550.0,0.62517552]
[1734493545342,0.4571757,104570.0,104540.0,0.47911504]
[1734493545647,0.4571757,104570.0,104540.0,0.95509934]
[1734493545840,0.4571757,104570.0,104550.0,0.047826]
[1734493546142,0.4571757,104570.0,104550.0,0.2237103]
[1734493547645,0.4571757,104570.0,104560.0,0.047821]
[1734493548138,0.4571757,104570.0,104550.0,0.1758855]
[1734493548340,0.4571757,104570.0,104560.0,0.047821]
[1734493548540,0.4571757,104570.0,104560.0,0.2237065]
[1734493550545,0.4571757,104570.0,104560.0,0.1758855]
[1734493550840,0.52716074,104570.0,104560.0,0.1758855]
[1734493551047,0.52716074,104570.0,104550.0,0.1758855]
[1734493551345,0.52716074,104570.0,104550.0,0.12813457]
[1734493551346,0.469621,104560.0,104550.0,0.12813457]
[1734493551942,0.4158571,104560.0,104550.0,0.12813457]
[1734493552243,0.0550571,104560.0,104540.0,0.048328]
[1734493552444,0.0328,104550.0,104540.0,0.048328]
[1734493553035,0.0328,104550.0,104540.0,0.348328]
[1734493554240,0.0328,104550.0,104540.0,0.3]
[1734493554441,0.0328,104550.0,104540.0,0.41781204]
[1734493554645,0.4243757,104570.0,104540.0,0.77911204]
[1734493554843,0.4546757,104570.0,104550.0,0.079023]
[1734493555548,0.4546757,104570.0,104550.0,0.70904195]
[1734493557344,0.4546757,104570.0,104560.0,0.63001895]
[1734493557951,0.4546757,104570.0,104560.0,0.67783995]
[1734493560258,0.4068587,104570.0,104560.0,0.63008902]
[1734493560452,0.3608,104590.0,104560.0,0.47860604]
[1734493560655,0.3608,104590.0,104580.0,0.11779704]
[1734493560656,0.3613,104590.0,104580.0,0.11779704]
[1734493560858,0.3613,104590.0,104580.0,0.22370275]
[1734493561556,0.3608,104590.0,104580.0,0.22370275]
[1734493562145,0.43078504,104590.0,104580.0,0.17589075]
[1734493562451,0.408608,104590.0,104570.0,0.25530675]
[1734493562654,0.3613,104590.0,104580.0,0.11779704]
[1734493562963,0.3613,104590.0,104580.0,0.047812]
[1734493563150,0.0005,104590.0,104580.0,0.047812]
[1734493563655,0.0956,104600.0,104580.0,0.047808]
[1734493563846,0.0956,104600.0,104590.0,0.047808]
[1734493564548,0.0961,104600.0,104590.0,0.047808]
[1734493564758,0.0961,104600.0,104590.0,0.22369875]
[1734493565059,0.0961,104600.0,104590.0,0.047808]
[1734493566349,0.4569,104600.0,104570.0,0.73308962]
[1734493566549,0.0961,104600.0,104580.0,0.047808]
[1734493566858,0.0961,104600.0,104590.0,0.047808]
[1734493567358,0.0314,104600.0,104590.0,0.047808]
[1734493568350,0.0314,104600.0,104590.0,0.11779304]
[1734493568546,0.0314,104600.0,104590.0,0.047808]
[1734493569361,0.0314,104600.0,104580.0,0.43078504]
[1734493569557,0.0314,104600.0,104590.0,0.11779304]
[1734493569749,0.0314,104600.0,104590.0,0.047808]
[1734493571249,0.46218504,104600.0,104590.0,0.047808]
[1734493571457,0.49338504,104600.0,104590.0,0.047808]
[1734493571652,0.4234,104600.0,104590.0,0.047808]
[1734493574363,0.0626,104600.0,104590.0,0.047808]
[1734493575258,0.4234,104600.0,104590.0,0.047808]
[1734493576563,0.07858768,104600.0,104590.0,0.047808]
[1734493576768,0.0626,104600.0,104590.0,0.047808]
[1734493578358,0.0626,104600.0,104590.0,0.11779304]
[1734493578756,0.0626,104600.0,104590.0,0.047808]
[1734493581665,0.0621,104600.0,104590.0,0.047808]
[1734493583567,0.36089223,104620.0,104590.0,0.77859304]
[1734493583763,9.223e-05,104620.0,104610.0,0.11778304]
[1734493584071,9.223e-05,104620.0,104610.0,0.047798]
[1734493584267,0.36089223,104620.0,104600.0,0.43078504]
[1734493584477,0.40868623,104620.0,104600.0,0.47858604]
[1734493584771,0.0005,104610.0,104600.0,0.408601]
[1734493584967,0.0005,104610.0,104600.0,0.48858604]
[1734493585470,0.0005,104610.0,104600.0,0.418601]
[1734493585664,0.40868623,104620.0,104600.0,0.48858604]
[1734493586759,0.0005,104610.0,104600.0,0.01]
[1734493586970,0.06323194,104610.0,104600.0,0.01]
[1734493587270,0.11102994,104610.0,104600.0,0.01]
[1734493587665,0.110998,104610.0,104600.0,0.01]
[1734493587866,0.0632,104610.0,104600.0,0.01]
[1734493588068,0.0321,104610.0,104600.0,0.01]
[1734493588268,0.0321,104610.0,104600.0,0.12778804]
[1734493588457,0.0321,104610.0,104600.0,0.057803]
[1734493589470,0.0321,104610.0,104600.0,0.418603]
[1734493591076,0.0321,104610.0,104600.0,0.408603]
[1734493593773,0.0321,104610.0,104600.0,0.3608]
[1734493594089,0.0957,104610.0,104600.0,0.3608]
[1734493594574,0.0321,104610.0,104600.0,0.47858804]
[1734493596669,0.0321,104610.0,104600.0,0.51048804]
[1734493597573,0.0321,104610.0,104600.0,0.54138804]
[1734493597771,0.0321,104610.0,104600.0,0.55138804]
[1734493597976,0.0321,104610.0,104600.0,0.57344066]
[1734493598283,0.36089223,104620.0,104610.0,0.047798]
[1734493598576,0.36139223,104620.0,104610.0,0.047798]
[1734493599874,0.00059223,104620.0,104610.0,0.408598]
[1734493600577,9.223e-05,104620.0,104610.0,0.408598]
[1734493602975,0.40691106,104620.0,104610.0,0.047798]
[1734493603381,0.40691106,104620.0,104600.0,0.46462083]
[1734493603678,0.0312,104610.0,104600.0,0.46462083]
[1734493603877,0.0312,104610.0,104600.0,0.057802]
[1734493604079,0.4537,104610.0,104600.0,0.057802]
[1734493604272,0.0929,104610.0,104600.0,0.057802]
[1734493604573,0.0929,104610.0,104600.0,0.10382083]
[1734493605276,0.13891883,104610.0,104600.0,0.01]
[1734493605470,0.43403628,104610.0,104600.0,0.01]
[1734493605671,0.38801745,104610.0,104600.0,0.01]
[1734493606178,0.43403628,104610.0,104600.0,0.01]
[1734493606780,0.38801745,104610.0,104600.0,0.01]
[1734493607183,0.43403628,104610.0,104590.0,0.10845914]
[1734493607382,0.3608,104600.0,104590.0,0.10845914]
[1734493608575,0.3929,104600.0,104590.0,0.10845914]
[1734493609977,0.0321,104600.0,104590.0,0.10845914]
[1734493610179,0.38801745,104610.0,104600.0,0.047803]
[1734493610389,0.3608,104610.0,104600.0,0.12452183]
[1734493610688,0.39119223,104620.0,104600.0,0.12452183]
[1734493610883,0.43721106,104620.0,104600.0,0.12452183]
[1734493611685,0.43721106,104620.0,104610.0,0.047798]
[1734493612589,0.45089587,104620.0,104610.0,0.047798]
[1734493614291,0.4969147,104620.0,104590.0,0.01463331]
[1734493614586,0.3608,104610.0,104600.0,0.047802]
[1734493614782,0.3933,104610.0,104600.0,0.047802]
[1734493615185,0.48711883,104610.0,104590.0,0.047806]
[1734493615483,0.51941883,104610.0,104590.0,0.22363804]
[1734493615792,0.04601883,104600.0,104590.0,0.047806]
[1734493615996,0.5435596,104610.0,104590.0,0.047806]
[1734493616483,0.5435596,104610.0,104590.0,0.22363804]
[1734493616990,0.3608,104600.0,104590.0,0.047806]
[1734493617490,0.3925,104600.0,104590.0,0.047806]
[1734493618293,0.0317,104600.0,104590.0,0.047806]
[1734493618499,0.3925,104600.0,104590.0,0.047806]
[1734493619289,0.0317,104600.0,104590.0,0.047806]
[1734493621293,0.0648,104610.0,104600.0,0.047803]
[1734493621490,0.4256,104610.0,104600.0,0.047803]
[1734493621688,0.3608,104610.0,104600.0,0.047803]
[1734493622288,0.43537704,104620.0,104600.0,0.047803]
[1734493622489,0.43537704,104620.0,104610.0,0.047798]
[1734493623790,0.43537704,104620.0,104610.0,0.057798]
[1734493632593,0.37457704,104620.0,104610.0,0.057798]
[1734493632996,9.223e-05,104620.0,104610.0,0.4887576]
[1734493633208,0.4234,104640.0,104610.0,0.5220576]
[1734493633507,0.4234,104640.0,104630.0,0.057789]
[1734493634205,0.5413446,104640.0,104630.0,0.01009454]
[1734493634701,0.4234,104640.0,104630.0,0.05788354]
[1734493635607,0.4935596,104640.0,104630.0,0.05788354]
[1734493636010,0.46941586,104640.0,104630.0,0.05788354]
[1734493636505,0.43698384,104640.0,104630.0,0.1038994]
[1734493636806,0.43698384,104640.0,104630.0,0.05788354]
[1734493637002,0.01358384,104640.0,104630.0,0.4646994]
[1734493637195,0.03042115,104650.0,104640.0,0.047785]
[1734493637395,0.03042115,104650.0,104640.0,0.13981672]
[1734493637396,0.00012115,104650.0,104640.0,0.13981672]
[1734493637616,5.24e-06,104650.0,104640.0,0.56131672]
[1734493638109,5.24e-06,104650.0,104640.0,0.53934867]
[1734493641520,5.24e-06,104650.0,104640.0,0.469285]
[1734493641717,5.24e-06,104650.0,104640.0,0.53934867]
[1734493644723,0.00050524,104650.0,104640.0,0.53934867]
[1734493645725,5.24e-06,104650.0,104640.0,0.53934867]
[1734493646826,0.00050524,104650.0,104640.0,0.53934867]
[1734493647721,5.24e-06,104650.0,104640.0,0.53934867]
[1734493648218,5.24e-06,104650.0,104640.0,0.60941234]
[1734493648424,5.24e-06,104650.0,104640.0,0.53934867]
[1734493648824,0.00050524,104650.0,104640.0,0.53934867]
[1734493649829,5.24e-06,104650.0,104640.0,0.53934867]
[1734493650728,0.00050524,104650.0,104640.0,0.53934867]
[1734493651025,0.00050524,104650.0,104640.0,0.3608]
[1734493651224,0.047785,104640.0,104630.0,0.01009454]
[1734493651424,0.47864867,104640.0,104630.0,0.01009454]
[1734493651624,0.047794,104620.0,104600.0,0.37508108]
[1734493651927,0.0321,104630.0,104610.0,0.3613]
[1734493652126,0.39370524,104650.0,104620.0,0.43086367]
[1734493652425,5.24e-06,104650.0,104640.0,0.50092734]
[1734493652628,5.24e-06,104650.0,104640.0,0.78377624]
[1734493652835,5.24e-06,104650.0,104640.0,0.85383991]
[1734493653133,0.0005,104660.0,104640.0,1.15383991]
[1734493653324,0.0005,104660.0,104650.0,0.49426367]
[1734493653522,0.0005,104660.0,104650.0,0.52706367]
[1734493653722,0.441164,104690.0,104650.0,0.82706367]
[1734493653922,0.441164,104690.0,104670.0,0.07006367]
[1734493654126,0.441164,104690.0,104660.0,0.43086367]
[1734493654724,0.473964,104690.0,104660.0,0.43086367]
[1734493655131,0.48691614,104690.0,104660.0,0.43086367]
[1734493655428,0.48691614,104690.0,104660.0,0.3608]
[1734493655620,0.48691614,104690.0,104660.0,0.43086367]
[1734493655821,0.473964,104690.0,104660.0,0.43086367]
[1734493656327,0.473964,104690.0,104670.0,0.07006367]
[1734493656831,0.473964,104690.0,104660.0,0.43086367]
[1734493657034,0.473964,104690.0,104670.0,0.07006367]
[1734493657222,0.473964,104690.0,104660.0,0.43086367]
[1734493657419,0.473964,104690.0,104670.0,0.07006367]
[1734493657623,0.473964,104690.0,104660.0,0.3608]
[1734493657624,0.473964,104690.0,104660.0,0.43086367]
[1734493659338,0.473964,104690.0,104670.0,0.07006367]
[1734493660130,0.3608,104680.0,104670.0,0.07006367]
[1734493660529,0.473964,104690.0,104670.0,0.07006367]
[1734493661133,0.408571,104680.0,104660.0,0.07006367]
[1734493661345,0.047779,104660.0,104640.0,0.00154584]
[1734493661527,0.408579,104660.0,104640.0,0.07160951]
[1734493662033,0.047779,104660.0,104650.0,0.07006367]
[1734493663332,0.456,104670.0,104650.0,0.07006367]
[1734493663538,0.503772,104670.0,104660.0,0.07006367]
[1734493663732,0.503772,104670.0,104650.0,0.07006367]
[1734493664029,0.503772,104670.0,104660.0,0.07006367]
[1734493664227,0.503772,104670.0,104650.0,0.07006367]
[1734493665740,0.503772,104670.0,104660.0,0.01]
[1734493666838,0.142972,104670.0,104660.0,0.01]
[1734493667239,0.142972,104670.0,104660.0,0.08006367]
[1734493667444,0.408567,104680.0,104660.0,0.08006367]
[1734493667740,0.047767,104680.0,104670.0,0.07006367]
[1734493668442,0.4546,104690.0,104670.0,0.07006367]
[1734493668652,0.502362,104690.0,104680.0,0.08006367]
[1734493669433,0.3613,104690.0,104680.0,0.08006367]
[1734493670146,0.3613,104690.0,104680.0,0.0801486]
[1734493670937,0.0005,104690.0,104680.0,0.4409486]
[1734493676651,0.0005,104690.0,104680.0,0.45331113]
[1734493679859,0.408562,104690.0,104680.0,0.01008493]
[1734493680047,0.470862,104690.0,104680.0,0.0801486]
[1734493680943,0.470862,104690.0,104680.0,0.01008493]
[1734493682645,0.470862,104690.0,104680.0,0.0801486]
[1734493682956,0.110062,104690.0,104680.0,0.0801486]
[1734493683160,0.470862,104690.0,104680.0,0.01008493]
[1734493683855,0.110062,104690.0,104680.0,0.0801486]
[1734493684050,0.470862,104690.0,104680.0,0.0801486]
[1734493684652,0.470862,104690.0,104680.0,0.01008493]
[1734493686244,0.54092567,104690.0,104680.0,0.01008493]
[1734493686450,0.047767,104680.0,104670.0,0.01]
[1734493686646,0.047776,104660.0,104650.0,0.00193301]
[1734493686855,0.408576,104660.0,104650.0,0.01143301]
[1734493687848,0.408576,104660.0,104650.0,0.01193301]
[1734493688356,0.769376,104660.0,104650.0,0.01193301]
[1734493688565,0.769376,104660.0,104650.0,0.00193301]
[1734493688755,0.441176,104660.0,104650.0,0.00143301]
[1734493689153,0.441176,104660.0,104650.0,0.07149668]
[1734493689751,0.471776,104660.0,104650.0,0.00193301]
[1734493690761,0.471776,104660.0,104650.0,0.00143301]
[1734493690955,0.471776,104660.0,104630.0,0.49246367]
[1734493691156,0.408581,104650.0,104630.0,0.49246367]
[1734493692254,0.408581,104650.0,104630.0,0.13166367]
[1734493692464,0.408585,104640.0,104620.0,0.47529798]
[1734493692661,0.408585,104640.0,104630.0,0.62696345]
[1734493692862,0.473485,104640.0,104630.0,0.62696345]
[1734493693258,0.473485,104640.0,104620.0,0.62696345]
[1734493693657,0.408589,104630.0,104620.0,0.62696345]
[1734493693964,0.440389,104630.0,104620.0,0.62696345]
[1734493694764,0.440389,104630.0,104610.0,0.74482512]
[1734493695560,0.440389,104630.0,104610.0,0.11786167]
[1734493696056,0.408589,104630.0,104620.0,0.07006367]
[1734493696377,0.047789,104630.0,104620.0,0.07006367]
[1734493697159,0.047789,104630.0,104610.0,0.47866167]
[1734493697359,0.408589,104630.0,104610.0,0.47866167]
[1734493698059,0.047789,104630.0,104610.0,0.47866167]
[1734493698766,0.408589,104630.0,104610.0,0.3608]
[1734493698961,0.047795,104620.0,104610.0,0.62696345]
[1734493699167,0.04779,104630.0,104610.0,0.47866167]
[1734493699358,0.04779,104630.0,104620.0,0.07006367]
[1734493700053,0.48561712,104640.0,104620.0,0.07006367]
[1734493700463,0.473486,104640.0,104620.0,0.07006367]
[1734493700771,0.3608,104640.0,104630.0,0.07006367]
[1734493700967,0.3608,104640.0,104630.0,0.13096367]
[1734493701167,0.57891515,104650.0,104630.0,0.13096367]
[1734493701555,0.047785,104640.0,104630.0,0.0609]